Cogmind - Beta 14 @@@ ROGUE MODE // 2025.01.07 @ 13:20:43 Player: Beef Result: Destroyed by H-77 Assassin with Coil Gun Performance ------------- Evolutions (6) 3000 Regions Visited (21) 4200 Robots Destroyed (297) 1485 Value Destroyed (11020) 11020 Prototype IDs (50) 1000 Alien Tech Used (1) 200 Bonus (4527) 4527 TOTAL SCORE: 25432 Bonus ------- High Alert Combat Kills 1282 Follower Combat Kills 2317 Network Hubs Disabled 400 Met Warlord at Base 500 MAIN.C Attacked Warlord 500 Warlord Defense Kills 308 Built Enhanced Grunts 300 A7 Reached Mainframe 300 Met R17 at Cetus 500 Friendly Fire -1880 Cogmind --------- Core Integrity 0/1150 Matter 300/300 Energy 100/100 System Corruption 12% Temperature Cool (0) Movement Core (50) Location -4/Factory Parts ------- > --- POWER (1) -------- (None) > --- PROPULSION (5) --- (None) > --- UTILITY (10) ----- Advanced Targeting Computer > --- WEAPON (3) ------- (None) > --- INVENTORY (5) ---- Light Antimatter Reactor Flexi-carbon Leg Flexi-carbon Leg Makeshift Transmission Jammer Minesniffer Drone Bay (10/10) Peak State ------------ > --- POWER ------------ Antimatter Reactor > --- PROPULSION ------- Improved Titanium Leg Armored Leg Enhanced Flexi-carbon Leg Myomer Leg Myomer Leg > --- UTILITY ---------- Advanced Cooling System Large Storage Unit Makeshift Terrain Scanner Core Analyzer Improved Weapon Cycler Centrium Medium Armor Plating Centrium Medium Armor Plating Powered Armor Improved Force Field Advanced Hacking Suite > --- WEAPON ----------- Variable Charge Gun Quantum Rifle Plasma Cannon > --- INVENTORY -------- Light Particle Reactor Flexi-carbon Leg Flexi-carbon Leg Compact Wheel Superbattery Makeshift Transmission Jammer Graphene Brace Improved Force Field Minesniffer Drone Bay Heavy Beamcaster Advanced Plasma Cannon Heavy Rocket Launcher Advanced Remote Datajack Heavy Mace [Rating: 122] Favorites ----------- Power Quantum Reactor Engine F-cell Engine Power Core Light Fission Core Reactor Quantum Reactor Propulsion Armored Leg Treads Light Treads Leg Armored Leg Wheel Armored Huge Wheel Hover Unit Cooled Aerolev Unit Utility Large Storage Unit Device Improved Heat Sink Storage Large Storage Unit Processor Core Analyzer Hackware Advanced Hacking Suite Protection Centrium Medium Armor Plating Weapon Quantum Rifle Energy Gun Quantum Rifle Energy Cannon Cooled Plasma Cannon Ballistic Gun Improved Assault Rifle Launcher Improved Grenade Launcher Special Weapon Advanced Remote Datajack Impact Weapon Heavy Mace Special Melee Weapon Improved Datajack Build | -11 -10 -9 -9 -9 -8 -8 -8 -7 -6 -6 -6 -6 -6 -6 -6 -5 -5 -5 -5 -4 -4 ------- Run | Yrd Mat Mat Min Exi Min Mat Sto Fac Fac Was Fac Ext Cet Arc Hub Fac Upp Upp War Pro Fac Slots Evolved 12 | . . 2 . . . 2 . 2 2 . . . . . . 2 . . . . 2 Power . | . . . . . . . . . . . . . . . . . . . . . . Propulsion 3 | . . . . . . 2 . . . . . . . . . . . . . . 1 Utility 8 | . . 2 . . . . . 2 2 . . . . . . 1 . . . . 1 Weapon 1 | . . . . . . . . . . . . . . . . 1 . . . . . Parts Attached 322 | 7 4 22 2 . 4 17 18 12 28 7 20 34 15 . 3 22 15 12 16 2 62 Power 24 | 1 1 3 . . . 2 1 2 1 . 1 5 2 . . 1 . 1 1 1 1 Engine 13 | 1 1 2 . . . 2 1 2 1 . 1 1 . . . . . 1 . . . Core 4 | . . 1 . . . . . . . . . 3 . . . . . . . . . Reactor 7 | . . . . . . . . . . . . 1 2 . . 1 . . 1 1 1 Propulsion 58 | 2 . 6 . . 1 6 2 . 2 . 2 9 3 . 2 . 4 3 2 . 14 Treads 13 | 2 . 6 . . 1 4 . . . . . . . . . . . . . . . Leg 35 | . . . . . . . . . . . 1 8 3 . 2 . 4 3 2 . 12 Wheel 9 | . . . . . . 2 1 . 2 . 1 1 . . . . . . . . 2 Hover 1 | . . . . . . . 1 . . . . . . . . . . . . . . Flight . | . . . . . . . . . . . . . . . . . . . . . . Utility 123 | 1 2 3 2 . 1 7 1 6 14 6 7 12 4 . . 17 9 2 5 . 24 Device 74 | . 1 1 . . 1 3 . 4 8 2 6 7 1 . . 11 7 . 3 . 19 Storage 3 | 1 1 . . . . 1 . . . . . . . . . . . . . . . Processor 7 | . . . . . . 1 . . . . . 1 . . . 3 . . . . 2 Hackware 2 | . . . . . . . . 1 . . . . . . . 1 . . . . . Protection 37 | . . 2 2 . . 2 1 1 6 4 1 4 3 . . 2 2 2 2 . 3 Artifact . | . . . . . . . . . . . . . . . . . . . . . . Weapon 117 | 3 1 10 . . 2 2 14 4 11 1 10 8 6 . 1 4 2 6 8 1 23 Energy Gun 38 | . . . . . . . 3 2 2 1 5 4 4 . . 3 1 3 4 . 6 Energy Cannon 16 | . . . . . . . 1 . 2 . 1 1 1 . . . 1 1 2 1 5 Ballistic Gun 32 | 3 1 9 . . 1 2 7 2 4 . . . . . . . . . . . 3 Ballistic Cannon . | . . . . . . . . . . . . . . . . . . . . . . Launcher 17 | . . 1 . . 1 . 3 . 2 . 2 3 1 . . 1 . . . . 3 Special Weapon 4 | . . . . . . . . . . . . . . . . . . 1 2 . 1 Impact Weapon 9 | . . . . . . . . . 1 . 1 . . . 1 . . 1 . . 5 Slashing Weapon . | . . . . . . . . . . . . . . . . . . . . . . Piercing Weapon . | . . . . . . . . . . . . . . . . . . . . . . Special Melee Weapon 1 | . . . . . . . . . . . 1 . . . . . . . . . . Unidentified Prototypes 21 | . . 2 . . . 1 7 2 1 1 . . 2 . . . . 1 2 . 2 Parts Lost 76 | . . 1 . . 3 3 . 1 6 2 3 14 . . . 4 3 5 2 . 29 Power 6 | . . . . . . . . . . . . 3 . . . 1 . 1 . . 1 Propulsion 12 | . . . . . 1 1 . . . . . 2 . . . . . 1 . . 7 Utility 41 | . . 1 . . 2 2 . 1 5 1 2 8 . . . 2 2 1 . . 14 Weapon 17 | . . . . . . . . . 1 1 1 1 . . . 1 1 2 2 . 7 Highest Loss Streak 18 | . . 1 . . 3 2 . 1 1 2 2 4 . . . 2 2 3 2 . 18 To Critical Strikes . | . . . . . . . . . . . . . . . . . . . . . . Average Slot Usage (%) 89 | . 96 89 98 100 97 84 71 75 81 75 85 86 93 93 93 96 99 99 98 100 91 Engine 5 | . 14 6 11 11 11 9 9 7 6 6 6 2 . . . . . 1 4 . . Reactor 1 | . . . . . . . . . . . . . 5 6 6 5 5 2 . 5 4 Treads 6 | . 28 22 22 22 22 26 . . . . . . . . . . . . . . . Leg 10 | . . . . . . . . . . . . 20 26 26 26 23 23 22 23 23 23 Wheel 4 | . . . . . . 3 18 15 13 13 13 2 . . . . . . . . . Device 16 | . 10 12 11 11 11 12 9 9 20 11 21 19 13 13 13 25 20 19 20 17 24 Storage 7 | . 14 11 11 11 11 9 9 7 6 6 6 6 6 6 6 5 5 5 5 5 4 Processor 2 | . . . . . . 3 . . . . . 3 6 6 6 3 9 5 5 5 6 Hackware 1 | . . . . . . . . 6 1 . . . . . . 1 5 5 5 5 4 Protection 14 | . . 10 20 22 20 2 8 11 19 24 23 13 20 20 20 10 8 13 12 17 6 Energy Gun 5 | . . . . . . . . . 1 5 5 7 12 13 12 15 16 11 11 11 7 Energy Cannon 1 | . . . . . . . . . 1 6 5 4 . . . . . 4 4 5 4 Ballistic Gun 8 | . 28 21 22 22 22 18 17 14 9 . . . . . . . . . . . . Peak Build Rating 122 | 6 7 18 20 21 23 40 45 53 73 69 71 76 97 97 99 113 112 110 109 105 122 Average Rating 64 | 4 6 14 19 20 22 27 42 51 66 60 66 63 89 97 98 107 108 104 98 104 106 On Entrance 59 | . 6 7 18 20 21 20 40 44 51 57 58 68 76 97 97 95 108 110 101 100 105 Naked Turns 12 | . . . . . . . . . . . . . . . . . . . . . 12 Heaviest Build 110 | 12 30 38 41 41 41 56 57 67 85 76 72 89 105 102 102 110 76 86 85 89 94 Greatest Support 145 | 40 40 40 40 40 40 80 56 56 56 56 56 72 80 80 88 88 88 84 98 98 145 Greatest Overweight (x) 2 | . . . 1 1 1 1 1 1 1 1 2 1 1 1 1 1 1 1 . . 2 Average Overweight (x) . | . . . . 1 . . . . . . 1 . 1 1 1 . . . . . . Largest Inventory Capacity 15 | 8 15 15 15 15 15 15 15 15 15 15 15 15 15 15 15 15 15 15 15 15 15 Average Capacity 14 | 6 11 15 15 15 15 15 15 15 15 15 15 15 15 15 15 15 15 15 15 15 14 Most Carried 15 | 2 7 15 15 15 15 15 15 15 15 15 15 15 15 15 15 15 15 15 15 15 15 Average Carried 13 | 1 3 13 15 14 14 14 14 14 14 14 14 13 14 15 14 14 14 13 14 13 13 Final Capacity 15 | 8 15 15 15 15 15 15 15 15 15 15 15 15 15 15 15 15 15 15 15 15 5 Final Carried 15 | 2 7 15 15 15 15 15 15 14 14 15 14 15 15 15 15 15 15 13 13 15 5 Class Distribution -------------------- 42% | Mutant 24% | Scavenger-Tank 22% | Scavenger-Mutant 10% | Commander-Mutant Dominant Class ---------------- Mutant | -10/Materials Scavenger-Mutant | -9/Materials Mutant | -9/Mines Mutant | -9/Exiles Mutant | -8/Mines Scavenger-Mutant | -8/Materials Commander-Mutant | -8/Storage Scavenger-Mutant | -7/Factory Mutant | -6/Factory Mutant | -6/Waste Mutant | -6/Factory Commander-Mutant | -6/Extension Commander-Mutant | -6/Cetus Scavenger-Mutant | -6/Archives Scavenger-Mutant | -6/Hub_04(d) Scavenger-Tank | -5/Factory Scavenger-Tank | -5/Upper Caves Scavenger-Tank | -5/Upper Caves Scavenger-Tank | -5/Warlord Scavenger-Tank | -4/Proximity Caves Scavenger-Tank | -4/Factory Resources | -11 -10 -9 -9 -9 -8 -8 -8 -7 -6 -6 -6 -6 -6 -6 -6 -5 -5 -5 -5 -4 -4 ----------- Run | Yrd Mat Mat Min Exi Min Mat Sto Fac Fac Was Fac Ext Cet Arc Hub Fac Upp Upp War Pro Fac Matter Collected 7171 | 210 304 739 42 . 240 366 987 361 861 109 430 749 213 13 44 257 163 134 170 78 701 Remotely 120 | . . . . . . . . . . . . . . . . . . . . . 120 Salvage Created 13418 | . 379 1058 . . 500 738 1457 353 873 76 1102 968 104 . 758 996 704 892 216 121 2123 Parts 591 | . 24 67 . . 29 41 77 19 44 2 49 37 3 . 35 37 15 23 9 5 75 Haulers Intercepted 14 | . . 4 . . . 1 5 . . . 1 . . . 1 . . . . . 2 Recyclers Shooed 15 | . 1 1 . . . 1 2 . . . 1 1 . . . 1 . . . . 7 Parts Field Recycled . | . . . . . . . . . . . . . . . . . . . . . . Retrieved Matter . | . . . . . . . . . . . . . . . . . . . . . . Parts Self-Destructed 39 | . . . . . . . . . . . . . . . . . 13 21 . 5 . Prevented . | . . . . . . . . . . . . . . . . . . . . . . Kills | -11 -10 -9 -9 -9 -8 -8 -8 -7 -6 -6 -6 -6 -6 -6 -6 -5 -5 -5 -5 -4 -4 ------- Run | Yrd Mat Mat Min Exi Min Mat Sto Fac Fac Was Fac Ext Cet Arc Hub Fac Upp Upp War Pro Fac Combat Hostiles Destroyed 217 | . 6 20 . . 11 10 24 7 23 . 19 17 2 . 5 16 13 18 4 5 17 Melee 1 | . . . . . . . . . . . . 1 . . . . . . . . . Guns 158 | . 6 20 . . 10 10 19 7 11 . 7 5 2 . 5 12 12 15 2 5 10 Cannons 17 | . . . . . . . . . 4 . 4 5 . . . . 1 3 . . . AOE 35 | . . . . . 1 . 5 . 7 . 7 5 . . . 3 . . . . 7 Classes Destroyed 19 | . 4 4 . . 1 1 3 . 1 . 2 3 . . . . . . . . . Worker 19 | . 2 4 . . . 1 3 . . . 1 2 . . 1 . . . . . 5 Builder 11 | . 1 . . . . . 1 . . . 1 . . . 2 . . . . . 6 Tunneler 2 | . . . . . 1 . . . . . . 1 . . . . . . . . . Hauler 14 | . . 4 . . . 1 5 . . . 1 . . . 1 . . . . . 2 Recycler 17 | . 1 . . . 1 2 1 . . . 1 1 . . 1 2 . . . . 7 Mechanic 1 | . . . . . . . . . . . 1 . . . . . . . . . . Operator 1 | . . . . . . . . . . . . 1 . . . . . . . . . Watcher 9 | . . 2 . . . 1 . . 1 . 2 1 . . 2 . . . . . . Swarmer 53 | . . 6 . . 4 . 3 . 8 . 3 1 . . 1 7 5 8 2 5 . Saboteur 1 | . . . . . . . . . . . . 1 . . . . . . . . . Grunt 81 | . 6 9 . . 7 5 5 5 4 . 7 4 . . 2 6 5 7 1 . 8 Brawler 6 | . . . . . . . 2 . 2 . . . . . . . 1 1 . . . Duelist 6 | . . . . . . . 2 . 1 . . . . . . . 1 . 2 . . Sentry 39 | . . 5 . . . 4 10 2 5 . 1 7 . . 1 1 1 2 . . . Demolisher 3 | . . . . . . . . . . . . 2 . . 1 . . . . . . Specialist 2 | . . . . . . . . . . . 2 . . . . . . . . . . Hunter 11 | . . . . . . . 2 . 1 . 3 2 . . . . . . . . 3 Programmer 13 | . . . . . . . . . 2 . 3 . . . . 2 . . . . 6 Heavy 1 | . . . . . . 1 . . . . . . . . . . . . . . . Cetus Guard 2 | . . . . . . . . . . . . . 2 . . . . . . . . Enhanced Grunt 2 | . . . . . . . . . . . . . . . 2 . . . . . . Thug 2 | . . . . . . . . . . . . 1 . . . 1 . . . . . Savage 1 | . . . . . . . . . . . . . . . 1 . . . . . . Best Kill Streak 9 | . 3 5 . . 4 4 7 2 5 . 7 8 1 . 4 5 5 9 3 5 9 Combat Bots Only 9 | . 3 5 . . 4 4 3 2 5 . 6 5 1 . 3 4 5 9 3 5 3 Max Kills in Single Turn 5 | . 1 2 . . 1 1 3 1 2 . 5 3 1 . 5 2 2 2 1 2 4 Gunslinging 1 | . . . . . . . 1 . 1 . 1 . . . 1 . 1 1 . . . Exploded 4 | . . . . . 1 . 3 . 2 . 4 1 . . . 2 . . . . 2 Melee 1 | . . . . . . . . . . . . 1 . . . . . . . . . Uniques/NPCs Destroyed . | . . . . . . . . . . . . . . . . . . . . . . Combat | -11 -10 -9 -9 -9 -8 -8 -8 -7 -6 -6 -6 -6 -6 -6 -6 -5 -5 -5 -5 -4 -4 -------- Run | Yrd Mat Mat Min Exi Min Mat Sto Fac Fac Was Fac Ext Cet Arc Hub Fac Upp Upp War Pro Fac Hostile Shots Fired 2223 | . 28 81 . . 73 67 104 73 217 1 138 462 27 7 30 121 80 73 65 52 524 Missed 717 | . 5 20 . . 18 17 22 25 64 . 50 158 5 1 11 31 31 24 23 9 203 Damage Taken 18756 | . 259 796 26 . 726 818 944 534 1514 57 1156 2459 261 104 374 1374 793 965 487 495 4614 Core 2870 | . 66 171 . . 122 60 106 12 295 . 127 326 8 . . 89 115 155 29 38 1151 Absorbed by Shields 3431 | . . . . . . 204 354 171 552 . 333 767 102 . . 300 . . 144 150 354 Redirected to Shielding 82 | . . . 1 . 41 . . . . . 40 . . . . . . . . . . Ignored by Resistances 1285 | . . . . . . 75 . 24 223 . . 306 228 46 62 233 73 . . . 15 Regen/Repaired (Parts) 834 | . . . . . . 4 389 . . . 91 . . . . . . . 350 . . Core Remaining (%) 62 | 100 73 . . . 26 . 69 98 . . . . . . 11 . . . . 57 . Volleys Fired 843 | . 34 91 . . 35 38 102 27 82 5 105 97 13 4 15 38 33 38 9 14 63 Largest 3 | . 2 2 . . 2 2 2 2 2 2 2 2 2 2 2 3 3 3 3 3 3 Hottest 283 | . 40 46 . . 46 46 53 53 56 55 199 199 169 174 174 254 272 267 250 255 283 Shots Fired 1662 | . 68 178 . . 69 76 195 55 150 9 146 175 24 7 30 97 87 104 15 35 142 Gun 1337 | . 68 176 . . 68 76 190 55 119 4 53 88 22 7 30 94 85 73 11 28 90 Cannon 270 | . . . . . . . . . 21 5 85 79 1 . . . 2 29 1 7 40 Launcher 50 | . . 2 . . 1 . 5 . 10 . 8 8 1 . . 3 . . . . 12 Special 5 | . . . . . . . . . . . . . . . . . . 2 3 . . Kinetic 740 | . 68 176 . . 68 76 190 55 97 . . . . . . . . . . . 10 Thermal 867 | . . . . . . . . . 43 9 138 167 23 7 30 94 87 102 12 35 120 Explosive 50 | . . 2 . . 1 . 5 . 10 . 8 8 1 . . 3 . . . . 12 Electromagnetic . | . . . . . . . . . . . . . . . . . . . . . . Robot Hit Streak 27 | . 9 15 . . 15 27 10 11 15 16 8 15 5 1 7 16 13 10 8 3 10 Robot Miss Streak 6 | . 3 3 . . 3 2 5 3 6 1 5 3 4 2 4 4 4 4 1 6 5 Penetration Max 1 | . . . . . . . 1 1 . . . . . . . . . . . . . Secondary Targets 26 | . . 3 . . 3 3 1 . 3 . 1 . . . 2 4 3 2 . 1 . Max Gunslinging Chain 2 | . . 1 . . 1 1 1 . 1 . 1 . . . 1 1 2 1 . 1 . Shots Hit Robots 1003 | . 45 111 . . 49 62 110 36 104 6 68 98 10 3 18 56 48 65 8 13 93 Core Hits 581 | . 20 45 . . 21 32 57 15 78 1 39 59 10 2 30 31 23 30 4 5 79 Critical Kills 7 | . 1 1 . . . . 1 1 . . 2 1 . . . . . . . . . Critical Parts Destroyed 9 | . 1 1 . . . 3 3 . . . . . . . . . . . . . 1 Critical Strikes 31 | . 2 2 . . . 3 4 1 1 . 3 5 . . . . . . . 4 6 Burn 15 | . . . . . . . . . 1 . 1 4 . . . . . . . 4 5 Meltdown 3 | . . . . . . . . . . . 2 1 . . . . . . . . . Destroy 12 | . 2 2 . . . 3 4 1 . . . . . . . . . . . . . Smash 1 | . . . . . . . . . . . . . . . . . . . . . 1 Melee Attacks 39 | . . . . . . . . . 4 . 14 . . . 1 . . . . . 20 Impact 32 | . . . . . . . . . 4 . 7 . . . 1 . . . . . 20 Slashing . | . . . . . . . . . . . . . . . . . . . . . . Piercing . | . . . . . . . . . . . . . . . . . . . . . . Sneak Attacks 9 | . . . . . . . . . . . 5 . . . . . . . . . 4 Combat Hostiles . | . . . . . . . . . . . . . . . . . . . . . . Follow-up Attacks . | . . . . . . . . . . . . . . . . . . . . . . Damage Inflicted 30366 | . 569 1553 6 . 878 967 2758 692 2801 166 3273 4175 409 82 1343 2338 1311 1836 187 370 4652 Guns 17968 | . 564 1553 . . 773 953 2170 692 1590 37 1007 1312 307 82 491 1880 1246 1171 154 343 1643 Cannons 5022 | . . . . . . . . . 575 129 1106 1742 . . . . 65 665 33 27 680 Explosions 6842 | . . . . . 95 . 582 . 636 . 1160 1117 102 . 809 458 . . . . 1883 Melee 442 | . . . . . . . . . . . . . . . . . . . . . 442 Ramming 92 | . 5 . 6 . 10 14 6 . . . . 4 . . 43 . . . . . 4 Kinetic 8205 | . 564 1553 . . 773 953 2170 692 1306 . . . . . . . . . . . 194 Thermal 15502 | . . . . . . . . . 940 166 2749 3054 307 82 491 1880 1311 1836 187 370 2129 Explosive 5291 | . . . . . 95 . 582 . 555 . 524 1117 102 . . 433 . . . . 1883 Electromagnetic 834 | . . . . . . . . . . . . . . . 809 25 . . . . . Impact 442 | . . . . . . . . . . . . . . . . . . . . . 442 Slashing . | . . . . . . . . . . . . . . . . . . . . . . Piercing . | . . . . . . . . . . . . . . . . . . . . . . Highest Corruption 24 | . . . . . . 1 1 1 17 17 20 21 21 21 24 1 1 . . . 12 Average Corruption 11 | . . . . . . 1 1 1 8 17 17 20 21 21 21 1 1 . . . 3 Corruption Purged 1 | . . . . . . . . . . . . . . . . . 1 . . . . Corruption Blocked . | . . . . . . . . . . . . . . . . . . . . . . Effects 281 | . . . . . . . 7 4 43 15 70 72 24 7 26 1 4 . . . 8 Message Errors 54 | . . . . . . . 3 1 10 2 15 11 3 2 6 . 1 . . . . Matter Fused 65 | . . . . . . . 2 1 14 3 18 13 6 1 5 . 1 . . . 1 Heat Flow Errors 29 | . . . . . . . 1 . 4 2 3 14 1 . 2 . . . . . 2 Energy Discharges 27 | . . . . . . . . 1 6 3 8 3 2 1 3 . . . . . . Parts Rejected 6 | . . . . . . . . . 1 . . 1 2 . 1 . . . . . 1 Parts Fused 2 | . . . . . . . . . . . 2 . . . . . . . . . . Data Loss (minor) 31 | . . . . . . . 1 . 3 1 5 10 4 . 5 . 1 . . . 1 Data Loss (major) 19 | . . . . . . . . . 5 1 4 4 2 1 1 . . . . . 1 Misfires 8 | . . . . . . . . 1 . . 1 2 2 . 1 . 1 . . . . Alerts 14 | . . . . . . . . . . 1 5 4 1 1 1 . . . . . 1 Misdirections 6 | . . . . . . . . . . 1 3 1 1 . . . . . . . . Weapon Failures 20 | . . . . . . . . . . 1 6 9 . 1 1 1 . . . . 1 Overload Shots 11 | . . . . . . . . . . . 3 7 1 . . . . . . . . Overflow Damage 811 | . . . . . . 33 . . 40 . 122 16 . . 35 . . 34 . . 531 Projectiles 120 | . . . . . . . . . . . 47 10 . . . . . 34 . . 29 Explosions 359 | . . . . . . 33 . . 40 . 75 6 . . 35 . . . . . 170 Melee 332 | . . . . . . . . . . . . . . . . . . . . . 332 Knockbacks 3 | . . . . . . . . . . . . . . . 1 . . . . . 2 Impact 2 | . . . . . . . . . . . . . . . 1 . . . . . 1 Kinetic . | . . . . . . . . . . . . . . . . . . . . . . Secondary 1 | . . . . . . . . . . . . . . . . . . . . . 1 Self-Inflicted Damage 794 | . . 77 . . . 58 3 209 36 . 186 3 . . 149 68 . . . . 5 Shots 16 | . . 1 . . . 1 . 2 2 . 4 1 . . 2 2 . . . . 1 Rammed 9 | . 2 1 1 . 1 3 1 . . . . . . . . . . . . . . Targets Rammed 17 | . 2 1 1 . 1 4 1 . . . . 1 . . 4 . . . . . 2 Kicked 7 | . . . . . . . . . . . . 1 . . 4 . . . . . 2 Crushed 1 | . . . . . . 1 . . . . . . . . . . . . . . . Highest Temperature 535 | . 20 367 . . . 15 295 142 260 182 342 271 407 108 232 535 150 350 138 521 461 Average Temperature 109 | . 11 154 . . . 7 54 37 55 87 104 103 137 54 81 197 35 111 51 294 154 Received Heat Transfer 4091 | . 165 264 . . 315 249 238 113 258 . 87 708 17 27 84 541 162 249 63 . 551 Effects 37 | . . 3 . . . . 2 . 1 . 1 1 1 . . 13 . 4 . 7 4 Shutdowns 10 | . . . . . . . . . . . . . . . . 3 . 1 . 3 3 Energy Bleed 4 | . . . . . . . . . . . 1 1 . . . 1 . . . . 1 Interference 17 | . . 3 . . . . 2 . 1 . . . . . . 5 . 3 . 3 . Matter Decay 1 | . . . . . . . . . . . . . . . . . . . . 1 . Short Circuit 2 | . . . . . . . . . . . . . 1 . . 1 . . . . . Damage (minor) 1 | . . . . . . . . . . . . . . . . 1 . . . . . Damage (major) 2 | . . . . . . . . . . . . . . . . 2 . . . . . Siege Activations . | . . . . . . . . . . . . . . . . . . . . . . Robots Corrupted 4 | . . . . . . . . . . . . . . . 1 . . . . . 3 Combat Hostiles . | . . . . . . . . . . . . . . . . . . . . . . Parts Fried 9 | . . . . . . . . . . . . . . . 4 . . . 1 . 4 Impact Corruptions 8 | . . . . . . . . . . . . . . . . . . . . . 8 Robots Melted 6 | . . . . . . . . . 1 . 2 1 . . . 1 . . 1 . . Combat Hostiles 5 | . . . . . . . . . 1 . 1 1 . . . 1 . . 1 . . Parts Melted 62 | . . . . . . . 2 . 12 . 2 9 . . . 7 6 6 4 3 11 Heat Transferred 22961 | . . . . . . . . . 1579 274 3172 4905 462 111 666 2146 1839 2702 218 864 4023 Parts Sabotaged 10 | . . . . . . . . . 2 . . . . . . . . . . . 8 Parts Stolen . | . . . . . . . . . . . . . . . . . . . . . . Parts Stripped . | . . . . . . . . . . . . . . . . . . . . . . Power Chain Reactions . | . . . . . . . . . . . . . . . . . . . . . . Alert | -11 -10 -9 -9 -9 -8 -8 -8 -7 -6 -6 -6 -6 -6 -6 -6 -5 -5 -5 -5 -4 -4 ------- Run | Yrd Mat Mat Min Exi Min Mat Sto Fac Fac Was Fac Ext Cet Arc Hub Fac Upp Upp War Pro Fac Peak Influence 1183 | . 185 534 208 . 170 267 1183 518 552 190 586 1093 863 438 1141 1092 . . . . 497 Initial 612 | . . 78 208 . . 62 112 494 229 189 119 287 612 265 153 549 . . . . 78 Average 396 | . 60 366 166 . 73 152 666 427 375 187 171 574 727 406 617 859 . . . . 215 Maximum Alert Level 4 | . . 2 1 . . 1 4 2 2 . 2 3 3 2 4 3 . . . . 2 Low Security (%) 29 | 100 100 9 20 . 100 64 9 . . 100 67 . . . 11 . . . . . 52 Level 1 27 | . . 42 79 . . 35 25 39 52 . 28 23 . 23 3 . . . . . 35 Level 2 26 | . . 48 . . . . 16 60 47 . 4 50 33 76 49 18 . . . . 11 Level 3 15 | . . . . . . . 35 . . . . 26 66 . 24 81 . . . . . Level 4 1 | . . . . . . . 13 . . . . . . . 10 . . . . . . Level 5 . | . . . . . . . . . . . . . . . . . . . . . . High Security . | . . . . . . . . . . . . . . . . . . . . . . Max Security . | . . . . . . . . . . . . . . . . . . . . . . Squads Dispatched 62 | . 2 3 . . 1 2 8 4 13 . 9 4 . . 7 4 . 1 . . 4 Investigation 13 | . 1 2 . . . . 2 1 2 . . 3 . . . 2 . . . . . Extermination 8 | . . . . . . . . 1 2 . 3 . . . . 1 . . . . 1 Reinforcement 22 | . 1 1 . . 1 2 3 2 1 . 6 . . . 1 1 . . . . 3 Assault 4 | . . . . . . . . . 2 . . 1 . . . . . 1 . . . Garrison 15 | . . . . . . . 3 . 6 . . . . . 6 . . . . . . Intercept . | . . . . . . . . . . . . . . . . . . . . . . Searches Triggered . | . . . . . . . . . . . . . . . . . . . . . . Construction Impeded 4 | . . . . . 1 . . . . . 1 . . . 1 . . . . . 1 Haulers Reinforced 2 | . . . . . . . . . . . 2 . . . . . . . . . . Active Scanning Responses . | . . . . . . . . . . . . . . . . . . . . . . Cargo Convoy Interrupts 1 | . . . . . . . . . . . . . . . . . . . . . 1 Stealth | -11 -10 -9 -9 -9 -8 -8 -8 -7 -6 -6 -6 -6 -6 -6 -6 -5 -5 -5 -5 -4 -4 --------- Run | Yrd Mat Mat Min Exi Min Mat Sto Fac Fac Was Fac Ext Cet Arc Hub Fac Upp Upp War Pro Fac Distress Signals 23 | . . 2 . . . 2 4 2 . . 3 2 2 . 3 . . . 1 . 2 Communications Jammed 13 | . . . . . . . . . . . . . . . . . . . . . 13 Distress Signals 13 | . . . . . . . . . . . . . . . . . . . . . 13 Times Spotted 387 | . 9 26 . . 15 15 39 11 33 1 26 42 10 6 15 23 13 21 40 6 36 Peak Tracking Total 14 | . 3 4 . . 4 5 5 3 6 1 5 7 5 1 6 5 5 7 14 5 11 Tactical Retreats 23 | . . 2 . . 4 1 1 1 . . 1 2 . . 1 1 . 3 4 1 1 Traps | -11 -10 -9 -9 -9 -8 -8 -8 -7 -6 -6 -6 -6 -6 -6 -6 -5 -5 -5 -5 -4 -4 ------- Run | Yrd Mat Mat Min Exi Min Mat Sto Fac Fac Was Fac Ext Cet Arc Hub Fac Upp Upp War Pro Fac Traps Triggered 20 | . 1 . . . . 1 2 3 7 . 1 3 . . . 1 . . . . 1 Indirectly . | . . . . . . . . . . . . . . . . . . . . . . Trap Hack Attempts . | . . . . . . . . . . . . . . . . . . . . . . Triggered . | . . . . . . . . . . . . . . . . . . . . . . Disarmed . | . . . . . . . . . . . . . . . . . . . . . . Reprogrammed . | . . . . . . . . . . . . . . . . . . . . . . Reused . | . . . . . . . . . . . . . . . . . . . . . . Traps Extracted . | . . . . . . . . . . . . . . . . . . . . . . Installed . | . . . . . . . . . . . . . . . . . . . . . . Triggered 18 | . . . . . . . . . . . . . . . . . . . 18 . . Machines | -11 -10 -9 -9 -9 -8 -8 -8 -7 -6 -6 -6 -6 -6 -6 -6 -5 -5 -5 -5 -4 -4 ---------- Run | Yrd Mat Mat Min Exi Min Mat Sto Fac Fac Was Fac Ext Cet Arc Hub Fac Upp Upp War Pro Fac Machines Disabled 57 | . . 2 . . . 2 6 2 3 . 10 4 1 . 11 2 . 1 . . 13 Max in Single Turn 10 | . . 2 . . . 2 2 2 2 . 3 1 1 . 10 2 . 1 . . 8 Garrison Access 2 | . . . . . . . . . . . . . . . . 2 . . . . . Network Hub 2 | . . . . . . . . . . . . . . . 2 . . . . . . Machines Repaired . | . . . . . . . . . . . . . . . . . . . . . . Machines Dismantled . | . . . . . . . . . . . . . . . . . . . . . . Machines Sabotaged . | . . . . . . . . . . . . . . . . . . . . . . Overloaded Fab Kills . | . . . . . . . . . . . . . . . . . . . . . . Hacking | -11 -10 -9 -9 -9 -8 -8 -8 -7 -6 -6 -6 -6 -6 -6 -6 -5 -5 -5 -5 -4 -4 --------- Run | Yrd Mat Mat Min Exi Min Mat Sto Fac Fac Was Fac Ext Cet Arc Hub Fac Upp Upp War Pro Fac Machines Accessed 82 | . 5 5 1 2 . 3 10 4 8 . 8 8 1 . 3 10 1 1 9 . 3 Terminals 39 | . 4 4 . . . 1 6 2 3 . 3 8 1 . 3 3 . . . . 1 Fabricators 6 | . . . . . . . . . 2 . 1 . . . . 3 . . . . . Repair Stations 8 | . . . . . . 1 1 2 1 . 3 . . . . . . . . . . Recycling Units 7 | . 1 1 . . . . 2 . 1 . 1 . . . . . . . . . 1 Scanalyzers 4 | . . . . . . 1 . . . . . . . . . 2 . . . . 1 Garrison Access 4 | . . . . . . . 1 . 1 . . . . . . 2 . . . . . Total Hacks 257 | . 12 17 1 5 . 29 21 11 21 . 11 17 2 . 5 71 1 1 12 . 20 Successful 138 | . 7 10 1 5 . 24 12 5 6 . 5 4 . . 3 32 1 1 12 . 10 Failed 119 | . 5 7 . . . 5 9 6 15 . 6 13 2 . 2 39 . . . . 10 Catastrophic 30 | . 1 2 . . . . 3 . 3 . 3 6 1 . . 8 . . . . 3 Database Lockouts . | . . . . . . . . . . . . . . . . . . . . . . Manual 83 | . 9 9 . 2 . 3 7 3 7 . 3 4 1 . 3 29 . . . . 3 Terminals 131 | . 10 15 . . . 3 12 6 10 . 3 17 2 . 5 39 . . . . 9 Fabricators 15 | . . . . . . . . . 3 . 1 . . . . 11 . . . . . Repair Stations 17 | . . . . . . 2 2 5 2 . 6 . . . . . . . . . . Recycling Units 12 | . 2 2 . . . . 3 . 2 . 1 . . . . . . . . . 2 Scanalyzers 44 | . . . . . . 24 . . . . . . . . . 11 . . . . 9 Garrison Access 18 | . . . . . . . 4 . 4 . . . . . . 10 . . . . . Terminal Hacks 56 | . 3 4 1 5 . . 6 2 . . 1 2 . . 2 13 1 1 12 . 3 Record 17 | . . . . 4 . . . . . . . . . . . . 1 1 11 . . Part Schematic 3 | . . . . . . . 1 . . . . . . . . 1 . . . . 1 Robot Schematic 1 | . . . . . . . . . . . . . . . . 1 . . . . . Robot Analysis 1 | . 1 . . . . . . . . . . . . . . . . . . . . Prototype ID Bank 3 | . . . . . . . . . . . . . . . 1 2 . . . . . Open Door 8 | . . . 1 . . . 3 . . . 1 2 . . . . . . 1 . . Branch Access Points 2 | . . 1 . . . . . . . . . . . . . 1 . . . . . Emergency Access Points 1 | . . 1 . . . . . . . . . . . . . . . . . . . Terminal Index 5 | . 1 1 . . . . . 1 . . . . . . . 1 . . . . 1 Alert Level 4 | . . . . . . . 1 1 . . . . . . . 1 . . . . 1 Unreport Threat 2 | . . . . . . . 1 . . . . . . . . 1 . . . . . Locate Traps 1 | . . . . . . . . . . . . . . . . 1 . . . . . Recall Investigation 2 | . . . . . . . . . . . . . . . . 2 . . . . . Registered Components 2 | . 1 . . . . . . . . . . . . . . 1 . . . . . Zone Layout 3 | . . 1 . . . . . . . . . . . . 1 1 . . . . . Derelict Proto ID Bank 1 | . . . . 1 . . . . . . . . . . . . . . . . . Fabricator Hacks 6 | . . . . . . . . . 2 . . . . . . 4 . . . . . Network Status 4 | . . . . . . . . . 1 . . . . . . 3 . . . . . Load Schematic 1 | . . . . . . . . . . . . . . . . 1 . . . . . Build 1 | . . . . . . . . . 1 . . . . . . . . . . . . Repair Station Hacks 8 | . . . . . . 2 2 1 1 . 2 . . . . . . . . . . Scan Component 5 | . . . . . . 1 1 1 1 . 1 . . . . . . . . . . Repair 3 | . . . . . . 1 1 . . . 1 . . . . . . . . . . Recycling Unit Hacks 5 | . . 1 . . . . 1 . 1 . 1 . . . . . . . . . 1 Report Inventory 5 | . . 1 . . . . 1 . 1 . 1 . . . . . . . . . 1 Scanalyzer 31 | . . . . . . 21 . . . . . . . . . 6 . . . . 4 Insert Component 14 | . . . . . . 9 . . . . . . . . . 3 . . . . 2 Analyze 17 | . . . . . . 12 . . . . . . . . . 3 . . . . 2 Garrison Access Hacks 1 | . . . . . . . . . . . . . . . . 1 . . . . . Seal Access 1 | . . . . . . . . . . . . . . . . 1 . . . . . Unauthorized Hacks 31 | . 4 5 . . . 1 3 2 2 . 1 2 . . 1 8 . . . . 2 Terminals 21 | . 3 4 . . . 1 1 1 2 . . 2 . . 1 5 . . . . 1 Track 1 | . . . . . . . . . . . . . . . . 1 . . . . . Botnet 19 | . 3 4 . . . 1 1 1 2 . . 2 . . 1 3 . . . . 1 Operators 1 | . . . . . . . . . . . . . . . . 1 . . . . . Fabricators 2 | . . . . . . . . . . . . . . . . 2 . . . . . Report 1 | . . . . . . . . . . . . . . . . 1 . . . . . Fabnet 1 | . . . . . . . . . . . . . . . . 1 . . . . . Repair Stations 2 | . . . . . . . . 1 . . 1 . . . . . . . . . . Mechanics 2 | . . . . . . . . 1 . . 1 . . . . . . . . . . Recycling Units 5 | . 1 1 . . . . 2 . . . . . . . . . . . . . 1 Recyclers 1 | . . . . . . . . . . . . . . . . . . . . . 1 Tunnel 4 | . 1 1 . . . . 2 . . . . . . . . . . . . . . Scanalyzers . | . . . . . . . . . . . . . . . . . . . . . . Garrison Access 1 | . . . . . . . . . . . . . . . . 1 . . . . . Jam 1 | . . . . . . . . . . . . . . . . 1 . . . . . Data Cores Recovered 2 | . . . . . . . . . . . . 1 . . . 1 . . . . . Used 1 | . . . . . . . . . . . . 1 . . . . . . . . . Hacking Detections 56 | . 4 4 . . . 2 6 4 8 . 6 7 1 . 2 10 . . . . 2 Full Trace Events 7 | . . 1 . . . . . 1 2 . . 2 . . . 1 . . . . . Feedback Events 2 | . . . . . . . . . 2 . . . . . . . . . . . . Corruption 1 | . . . . . . . . . 1 . . . . . . . . . . . . Hackware Fried 1 | . . . . . . . . . 1 . . . . . . . . . . . . Feedback Blocked . | . . . . . . . . . . . . . . . . . . . . . . Robot Schematics Acquired 1 | . . . . . . . . . . . . . . . . 1 . . . . . Robots Built . | . . . . . . . . . . . . . . . . . . . . . . Authchips . | . . . . . . . . . . . . . . . . . . . . . . Time . | . . . . . . . . . . . . . . . . . . . . . . Total Robot Build Rating . | . . . . . . . . . . . . . . . . . . . . . . Part Schematics Acquired 17 | . . . . . . 9 1 . . . . . . . . 4 . . . . 3 Parts Built 1 | . . . . . . . . . 1 . . . . . . . . . . . . Authchips . | . . . . . . . . . . . . . . . . . . . . . . Time 84 | . . . . . . . . . 84 . . . . . . . . . . . . Total Part Build Rating 6 | . . . . . . . . . 6 . . . . . . . . . . . . Parts Repaired 3 | . . . . . . 1 1 . . . 1 . . . . . . . . . . Time 142 | . . . . . . 64 44 . . . 34 . . . . . . . . . . Parts Recycled . | . . . . . . . . . . . . . . . . . . . . . . Recycled Matter . | . . . . . . . . . . . . . . . . . . . . . . Retrieved Matter . | . . . . . . . . . . . . . . . . . . . . . . Retrieved Components . | . . . . . . . . . . . . . . . . . . . . . . Parts Scanalyzed 14 | . . . . . . 9 . . . . . . . . . 3 . . . . 2 Part Schematics Acquired 14 | . . . . . . 9 . . . . . . . . . 3 . . . . 2 Parts Damaged 1 | . . . . . . 1 . . . . . . . . . . . . . . . Bothacking | -11 -10 -9 -9 -9 -8 -8 -8 -7 -6 -6 -6 -6 -6 -6 -6 -5 -5 -5 -5 -4 -4 ------------ Run | Yrd Mat Mat Min Exi Min Mat Sto Fac Fac Was Fac Ext Cet Arc Hub Fac Upp Upp War Pro Fac Used RIF Installer . | . . . . . . . . . . . . . . . . . . . . . . Robots Hacked 4 | . . . . . . . . . . . 3 . . . . . . 1 . . . Non-combat 3 | . . . . . . . . . . . 3 . . . . . . . . . . Combat 1 | . . . . . . . . . . . . . . . . . . 1 . . . Robot Hacks Applied 8 | . . . . . . . . . . . 7 . . . . . . 1 . . . parse_system 2 | . . . . . . . . . . . 1 . . . . . . 1 . . . no_distress 2 | . . . . . . . . . . . 2 . . . . . . . . . . find_fabricator 2 | . . . . . . . . . . . 2 . . . . . . . . . . find_dsf 1 | . . . . . . . . . . . 1 . . . . . . . . . . check_alert 1 | . . . . . . . . . . . 1 . . . . . . . . . . Relay Couplers Released . | . . . . . . . . . . . . . . . . . . . . . . Fabnet Peak Effective % . | . . . . . . . . . . . . . . . . . . . . . . Robots Rewired 22 | . . . . 3 . . . . . . . 17 . . . . . 2 . . . Allies Hacked . | . . . . . . . . . . . . . . . . . . . . . . Hacks Repelled . | . . . . . . . . . . . . . . . . . . . . . . Allies | -11 -10 -9 -9 -9 -8 -8 -8 -7 -6 -6 -6 -6 -6 -6 -6 -5 -5 -5 -5 -4 -4 -------- Run | Yrd Mat Mat Min Exi Min Mat Sto Fac Fac Was Fac Ext Cet Arc Hub Fac Upp Upp War Pro Fac Total Allies 48 | . . . . 3 . . 10 . . . . 25 5 . . 3 . 2 . . . Largest Group 13 | . . . . 3 3 . 10 5 . . . 13 12 10 7 3 . 2 2 . . Highest-Rated Group 784 | . . . . 24 24 . 173 93 . . . 543 784 745 539 93 . 60 60 . . Highest-Rated Ally 159 | . . . . 8 8 . 29 29 . . . 159 159 159 96 31 . 30 30 . . Total Orders 4 | . . . . . . . . 2 1 . 1 . . . . . . . . . . EXPLORE 4 | . . . . . . . . 2 1 . 1 . . . . . . . . . . Ally Attacks 440 | . . . . . 9 . 71 9 . . . 159 61 16 52 63 . . . . . Total Damage 8717 | . . . . . 43 . 798 69 . . . 3328 1218 545 1807 909 . . . . . Kills 72 | . . . . . . . 11 . . . . 25 10 5 12 9 . . . . . Allies Corrupted 2 | . . . . . . . . . . . 1 . . . 1 . . . . . . Allies Melted 3 | . . . . . . . . . . . . . . . 1 . . . 2 . . Intel | -11 -10 -9 -9 -9 -8 -8 -8 -7 -6 -6 -6 -6 -6 -6 -6 -5 -5 -5 -5 -4 -4 ------- Run | Yrd Mat Mat Min Exi Min Mat Sto Fac Fac Was Fac Ext Cet Arc Hub Fac Upp Upp War Pro Fac Robot Analysis Total 1 | . 1 . . . . . . . . . . . . . . . . . . . . Derelict Logs Recovered 7 | . . . 3 . . . . . . . . . . . . . 2 1 . 1 . Drone Launches 6 | . . . . . . . . 2 2 . 2 . . . . . . . . . . Drone Recoveries 3 | . . . . . . . . . 2 . 1 . . . . . . . . . . Exploration | -11 -10 -9 -9 -9 -8 -8 -8 -7 -6 -6 -6 -6 -6 -6 -6 -5 -5 -5 -5 -4 -4 ------------- Run | Yrd Mat Mat Min Exi Min Mat Sto Fac Fac Was Fac Ext Cet Arc Hub Fac Upp Upp War Pro Fac Turns Passed 17166 | 83 590 1091 503 993 680 553 1179 769 1478 253 1371 1404 526 142 560 980 861 721 920 296 1213 Spaces Moved 9624 | 53 293 478 237 411 242 224 783 557 819 204 743 731 233 67 263 646 562 468 704 197 709 Core 77 | 12 . . . . . . . . . . . . . . . . . . . . 65 Treads 1867 | 41 293 478 237 411 242 165 . . . . . . . . . . . . . . . Legs 4299 | . . . . . . . . . . . . 542 233 67 263 646 562 468 704 197 617 Wheels 3381 | . . . . . . 59 783 557 819 204 743 189 . . . . . . . . 27 Hover . | . . . . . . . . . . . . . . . . . . . . . . Flight . | . . . . . . . . . . . . . . . . . . . . . . Fastest Speed 50 | 50 160 160 160 240 160 100 100 100 100 100 115 100 190 190 190 120 120 120 120 120 50 Average Speed 135 | 135 160 160 209 240 231 146 105 114 112 108 115 119 190 190 190 120 129 124 120 120 115 Slowest Speed 240 | 160 160 160 240 240 240 240 115 115 115 115 130 190 190 190 190 190 190 190 120 120 130 Overloaded Moves . | . . . . . . . . . . . . . . . . . . . . . . Propulsion Burnouts . | . . . . . . . . . . . . . . . . . . . . . . Robots Hopped . | . . . . . . . . . . . . . . . . . . . . . . Cave-ins Triggered 1 | . . . . . . . . . 1 . . . . . . . . . . . . Exploration Rate (%) 49 | 4 54 40 65 89 40 16 88 31 19 85 17 76 74 74 48 16 67 55 83 38 18 Regions Visited 21 Branch Regions 12 Pre-discovered Areas 8 | . 1 1 . 1 . . 2 . . . . . . . . . 2 . 1 . . Known Exits Taken 8 | . . 1 . . . . 1 . . . . 1 1 1 1 1 . . . 1 . Unknown Exits Taken 11 | 1 1 . 1 1 1 1 . 1 . . 1 . . . . . 1 1 1 . . Scrap Searched 11 | . . . 3 . 1 . . . . . . . . . . . 2 2 . 3 . Spaces Dug 43 | . . 6 . . . . . . 4 . 16 3 . . 1 . . . . . 13 Terrain Destroyed 1036 | . . 59 . . 9 22 35 31 89 1 164 106 14 1 317 28 7 20 1 11 121 Melee 24 | . . . . . . . . . 4 . 6 . . . 1 . . . . . 13 Projectile 175 | . . . . . . . . . 3 1 62 35 2 1 8 17 7 20 1 11 7 AOE 837 | . . 59 . . 9 22 35 31 82 . 96 71 12 . 308 11 . . . . 101 Terrain Rammed . | . . . . . . . . . . . . . . . . . . . . . . Walls Destroyed . | . . . . . . . . . . . . . . . . . . . . . . Machines Disabled . | . . . . . . . . . . . . . . . . . . . . . . Actions | -11 -10 -9 -9 -9 -8 -8 -8 -7 -6 -6 -6 -6 -6 -6 -6 -5 -5 -5 -5 -4 -4 --------- Run | Yrd Mat Mat Min Exi Min Mat Sto Fac Fac Was Fac Ext Cet Arc Hub Fac Upp Upp War Pro Fac Total 12219 | 61 344 633 243 419 293 372 990 646 1223 225 1095 1073 296 74 288 789 626 544 778 235 972 Wait 887 | 1 7 5 1 . 8 69 57 35 262 . 198 36 20 4 . 56 5 16 23 18 66 Move 9604 | 52 292 477 236 410 241 223 782 556 819 203 742 730 232 66 262 645 561 467 703 196 709 Hop . | . . . . . . . . . . . . . . . . . . . . . . Pick Up 123 | 1 4 15 1 1 2 5 7 5 8 3 6 14 5 . 1 10 4 2 7 4 18 Fast Attach 134 | 6 2 3 1 . . 12 10 6 12 7 6 12 4 . 1 13 5 1 7 . 26 Attach 60 | . . 3 . . 1 1 . 4 5 . 4 9 . . . 4 3 6 3 1 16 Detach 27 | . . 1 . . . 1 2 1 2 2 1 2 . . . 3 2 1 5 . 4 Swap 129 | 1 2 16 1 . 3 4 8 2 11 . 10 13 11 . 2 5 7 6 6 1 20 Drop 184 | . 1 21 2 1 2 15 19 9 10 5 9 12 11 . 2 15 6 . 15 1 28 Fire 843 | . 34 91 . . 35 38 102 27 82 5 105 97 13 4 15 38 33 38 9 14 63 Melee 39 | . . . . . . . . . 4 . 14 . . . 1 . . . . . 20 Ram 2 | . . . . . . 1 1 . . . . . . . . . . . . . . Kick 7 | . . . . . . . . . . . . 1 . . 4 . . . . . 2 Crush 8 | . 2 1 1 . 1 3 . . . . . . . . . . . . . . . Escape Stasis 16 | . . . . . . . . . 8 . . 8 . . . . . . . . . Rewire 156 | . . . . 7 . . 2 1 . . . 139 . . . . . 7 . . . Trap . | . . . . . . . . . . . . . . . . . . . . . . Miscellaneous . | . . . . . . . . . . . . . . . . . . . . . . Route ------- -11/Scrapyard -10/Materials (discovered 2 exits: *Mat / [*Min]) -9/Materials (discovered 3 exits: *Mat / *Min x2) -9/Mines (discovered 3 exits: *Mat / *Exi / [*Zio]) -9/Exiles -8/Mines -8/Materials (discovered 3 exits: Fac x2 / *Sto) -8/Storage -7/Factory (discovered 2 exits: *Fac x2) -6/Factory (discovered 2 exits: *Fac / [*Low]) -6/Waste -6/Factory -6/Extension (discovered 2 exits: *Fac / *Cet) -6/Cetus (discovered 2 exits: *Fac / *Arc) -6/Archives (discovered 2 exits: *Fac / *Hub) -6/Hub_04(d) -5/Factory (discovered 3 exits: *Fac / *Upp x2) -5/Upper Caves -5/Upper Caves -5/Warlord -4/Proximity Caves -4/Factory History --------- Turn | Location | Event 6 | -11/Scrapyard | Discovered new exit (range 16) 84 | -11/Scrapyard | Entered Materials 308 | -10/Materials | Build established: Mutant 642 | -10/Materials | Discovered new exit (range 9) 642 | -10/Materials | Discovered new exit (range 15) 674 | -10/Materials | Entered another Materials area 674 | -9/Materials | Evolved 2 slots: Utility x2 1129 | -9/Materials | Discovered new exit (range 16) 1148 | -9/Materials | Build established: Scavenger-Mutant 1343 | -9/Materials | Identified exit to Mines 1434 | -9/Materials | Discovered new exit (range 10) 1765 | -9/Materials | Entered Mines 1807 | -9/Mines | A Derelict revealed a hidden shortcut to a safe place 1878 | -9/Mines | Met a Derelict bent on vengeance 1885 | -9/Mines | Discovered new exit (range 11) 1907 | -9/Mines | Learned Materials non-interactive machine intel 1934 | -9/Mines | Build established: Mutant 1983 | -9/Mines | Met a Derelict who couldn't figure out how to use a Trap Extractor 2136 | -9/Mines | Learned location of 1 exit from Materials 2256 | -9/Mines | Deemed a non-threat by the Exiles lab entrance 2258 | -9/Mines | Discovered new exit (range 5) 2268 | -9/Mines | Entered Exiles 2268 | -9/Exiles | Found Exiles lab destroyed 2570 | -9/Exiles | Opened EX-Vault 2581 | -9/Exiles | Found Superbattery 2718 | -9/Exiles | Learned location of Zion (-7) 3232 | -9/Exiles | Discovered new exit (range 14) 3261 | -9/Exiles | Entered Mines 3261 | -8/Mines | Accompanied by 3 allies 3392 | -8/Mines | Lost 3 allies 3461 | -8/Mines | Core integrity fell below 50% 3844 | -8/Mines | Discovered new exit (range 8) 3926 | -8/Mines | Lost 3 parts (1n2u) 3941 | -8/Mines | Entered Materials 3941 | -8/Materials | Evolved 2 slots: Propulsion x2 3942 | -8/Materials | Identified exit to Factory 3944 | -8/Materials | Loaded intel: 30 non-interactive machine locations 4296 | -8/Materials | Repaired Broken Imp. Assault Rifle 4402 | -8/Materials | Discovered new exit (range 11) 4494 | -8/Materials | Entered Storage 4758 | -8/Storage | Garrison activated, responded to threat 4911 | -8/Storage | Repaired Hrd. Heavy Armor Plating 5017 | -8/Storage | Assisted by bots powering up and referring to "LRC-V3" 5336 | -8/Storage | Build established: Commander-Mutant 5354 | -8/Storage | Lost 3 allies 5631 | -8/Storage | Discovered exit to Factory (range 16) 5673 | -8/Storage | Entered Factory 5673 | -7/Factory | Accompanied by 5 allies 5673 | -7/Factory | Evolved 2 slots: Utility x2 5765 | -7/Factory | Lost 4 allies 6048 | -7/Factory | Build established: Scavenger-Mutant 6162 | -7/Factory | Discovered new exit (range 9) 6327 | -7/Factory | Discovered new exit (range 11) 6442 | -7/Factory | Entered another Factory area 6442 | -6/Factory | Evolved 2 slots: Utility x2 6552 | -6/Factory | Discovered new exit (range 3) 6690 | -6/Factory | Hacking Suite fried by hacking feedback 7111 | -6/Factory | Build established: Mutant 7115 | -6/Factory | Discovered new exit (range 4) 7117 | -6/Factory | System corruption reached 10% 7425 | -6/Factory | Garrison activated, responded to threat 7481 | -6/Factory | Garrison activated, responded to threat 7754 | -6/Factory | Crushed by falling debris 7842 | -6/Factory | First assault squad dispatched 7916 | -6/Factory | Fabricated Enh. Flexi-carbon Leg (x1) 7920 | -6/Factory | Manually triggered Chute Trap 7920 | -6/Factory | Sucked down chute 7920 | -6/Factory | Entered Waste 7920 | -6/Waste | The area was eerily silent 8150 | -6/Waste | A Compactor rumbled back to life 8150 | -6/Waste | Crushed by Compactor (2 parts destroyed, 1 dropped) 8151 | -6/Waste | Spotted C-40 Crusher 8158 | -6/Waste | Discovered new exit (range 10) 8173 | -6/Waste | Entered Factory 8590 | -6/Factory | Spotted B-75 Beast 8656 | -6/Factory | Repaired Quantum Rifle 9535 | -6/Factory | Discovered new exit (range 10) 9544 | -6/Factory | Entered Extension 9602 | -6/Extension | Rescued a captive Derelict 9602 | -6/Extension | Rescued a captive Derelict 9637 | -6/Extension | Core integrity fell below 50% 9680 | -6/Extension | Lost 3 parts (1p2u) 9882 | -6/Extension | Lost 4 parts (1p1n2u) 10020 | -6/Extension | Rescued A7 10052 | -6/Extension | Build established: Commander-Mutant 10131 | -6/Extension | Rescued a captive Derelict 10132 | -6/Extension | Rescued a captive Derelict 10206 | -6/Extension | Spotted B-75 Beast 10244 | -6/Extension | First assault squad dispatched 10265 | -6/Extension | Spotted B-75 Beast 10272 | -6/Extension | Allies destroyed B-75 Beast 10284 | -6/Extension | Allies destroyed B-75 Beast 10301 | -6/Extension | Lost 4 allies 10344 | -6/Extension | Disrupted transfer network 10358 | -6/Extension | Lost 4 allies 10404 | -6/Extension | Rescued a captive Derelict 10472 | -6/Extension | Rescued a captive Derelict 10480 | -6/Extension | Rescued a captive Derelict 10558 | -6/Extension | Core integrity fell below 20% 10598 | -6/Extension | Build established: Scavenger-Mutant 10909 | -6/Extension | Discovered new exit (range 10) 10910 | -6/Extension | Discovered new exit (range 6) 10921 | -6/Extension | Found Hvy. Reactive Plating 10927 | -6/Extension | Found Powered Armor 10935 | -6/Extension | Identified exit to Cetus 10948 | -6/Extension | Entered Cetus 10948 | -6/Cetus | Accompanied by 12 allies (A7) 10953 | -6/Cetus | Acquired a Cetus Manufacturing Module code from A7 10972 | -6/Cetus | Spotted Cetus Guard 10972 | -6/Cetus | Spotted Cetus Guard 10974 | -6/Cetus | Spotted Cetus Guard 10975 | -6/Cetus | Spotted Cetus Guard 10991 | -6/Cetus | Allies destroyed Cetus Guard 10993 | -6/Cetus | Allies destroyed Cetus Guard 10993 | -6/Cetus | Allies destroyed Cetus Guard 10998 | -6/Cetus | Destroyed Cetus Guard 11027 | -6/Cetus | Lost 5 allies 11110 | -6/Cetus | Started Cetus Manufacturing Module 11129 | -6/Cetus | Escorted A7 to Cetus Mainframe 11135 | -6/Cetus | Manufactured an Enhanced Grunt 11160 | -6/Cetus | Manufactured an Enhanced Grunt 11181 | -6/Cetus | Discovered new exit (range 15) 11185 | -6/Cetus | Manufactured an Enhanced Grunt 11210 | -6/Cetus | Manufactured an Enhanced Grunt 11215 | -6/Cetus | Spotted Cetus Guard 11216 | -6/Cetus | Spotted Cetus Guard 11217 | -6/Cetus | Allies destroyed Cetus Guard 11218 | -6/Cetus | Spotted Cetus Guard 11218 | -6/Cetus | Spotted Cetus Guard 11226 | -6/Cetus | Allies destroyed Cetus Guard 11229 | -6/Cetus | Allies destroyed Cetus Guard 11235 | -6/Cetus | Manufactured an Enhanced Grunt 11240 | -6/Cetus | Destroyed Cetus Guard 11257 | -6/Cetus | Discovered new exit (range 16) 11269 | -6/Cetus | Met Revision 17 11455 | -6/Cetus | Identified exit to Archives 11465 | -6/Cetus | Build established: Commander-Mutant 11474 | -6/Cetus | Entered Archives 11474 | -6/Archives | Accompanied by 10 allies (A7) 11479 | -6/Archives | Received a hacking code to weaken MAIN.C 11528 | -6/Archives | Discovered new exit (range 16) 11562 | -6/Archives | Discovered new exit (range 15) 11608 | -6/Archives | Identified exit to Hub_04(d) 11616 | -6/Archives | Entered Hub_04(d) 11616 | -6/Hub_04(d) | Accompanied by 7 allies 11690 | -6/Hub_04(d) | Garrison activated, responded to threat 11726 | -6/Hub_04(d) | Lost 4 allies 11782 | -6/Hub_04(d) | Build established: Scavenger-Mutant 11795 | -6/Hub_04(d) | Garrison activated, responded to threat 11961 | -6/Hub_04(d) | Discovered new exit (range 9) 12104 | -6/Hub_04(d) | Network Hub disabled 12104 | -6/Hub_04(d) | Network Hub disabled 12170 | -6/Hub_04(d) | Identified exit to Factory 12175 | -6/Hub_04(d) | Spotted Lightning 12175 | -6/Hub_04(d) | Spotted Lightning 12176 | -6/Hub_04(d) | Entered Factory 12176 | -5/Factory | Evolved 2 slots: Utility x1, Weapon x1 12331 | -5/Factory | Allied Derelicts emerged from ambush trap array 12505 | -5/Factory | Spotted B-75 Beast 12518 | -5/Factory | Allies destroyed B-75 Beast 12570 | -5/Factory | Build established: Scavenger-Tank 12757 | -5/Factory | Discovered new exit (range 11) 12774 | -5/Factory | Discovered new exit (range 11) 12957 | -5/Factory | Identified exit to Upper Caves 13156 | -5/Factory | Entered Upper Caves 13201 | -5/Upper Caves | Attracted the attention of an 0b10 checkpoint 13857 | -5/Upper Caves | Discovered new exit (range 12) 14017 | -5/Upper Caves | Entered another Upper Caves area 14035 | -5/Upper Caves | Attracted the attention of an 0b10 checkpoint 14082 | -5/Upper Caves | Destroyed 7 combat bots 14099 | -5/Upper Caves | Encountered a Warlord checkpoint 14293 | -5/Upper Caves | Learned Factory security intel 14333 | -5/Upper Caves | Attracted the attention of an 0b10 outpost 14410 | -5/Upper Caves | Lost 3 parts (1n1u1w) 14452 | -5/Upper Caves | Destroyed 9 combat bots 14646 | -5/Upper Caves | Found Alien Artifact 14646 | -5/Upper Caves | Identified Dimensional Node Initializer 14646 | -5/Upper Caves | Initialized slip node 14693 | -5/Upper Caves | Discovered new exit (range 12) 14738 | -5/Upper Caves | Entered Warlord 14738 | -5/Warlord | Accompanied by 2 allies 14946 | -5/Warlord | Learned location of Armory (-3) 14947 | -5/Warlord | Learned 4 Armory zone layouts 14947 | -5/Warlord | Learned 4 Armory zone layouts 14949 | -5/Warlord | Learned Factory recycling unit intel 14949 | -5/Warlord | Learned Research recycling unit intel 15110 | -5/Warlord | Found Prototype Device 15110 | -5/Warlord | Identified Minesniffer Drone Bay 15180 | -5/Warlord | Met Warlord 15205 | -5/Warlord | Warlord's base attacked by MAIN.C 15320 | -5/Warlord | Opened side exit 15338 | -5/Warlord | Spotted B-86 Titan 15543 | -5/Warlord | Spotted Striker 15555 | -5/Warlord | Warlord forces counterattacked 15621 | -5/Warlord | Lost 3 allies 15642 | -5/Warlord | Discovered new exit (range 15) 15658 | -5/Warlord | Entered Proximity Caves 15687 | -4/Proximity Caves | Lost 3 allies 15784 | -4/Proximity Caves | Identified exit to Factory 15954 | -4/Proximity Caves | Entered Factory 15954 | -4/Factory | Evolved 2 slots: Propulsion x1, Utility x1 15956 | -4/Factory | Loaded intel: 6 recycling unit locations 16835 | -4/Factory | Lost 6 parts (2n2u2w) 17022 | -4/Factory | Cargo convoy interrupted 17047 | -4/Factory | Core integrity fell below 50% 17122 | -4/Factory | System corruption reached 10% 17133 | -4/Factory | Released all parts (7) 17136 | -4/Factory | Core integrity fell below 20% 17162 | -4/Factory | Lost 18 parts (1p5n8u4w) 17167 | -4/Factory | Destroyed by H-77 Assassin with Coil Gun Last Messages --------------- 17135_ Slug penetrates Subcomponent Replicator. 17135_ Penetrated by Slug. 17139_ Slug penetrates Door. 17139_ Slug penetrates Wall. 17140_ ALERT: Hostiles spotted, dispatching reinforcements to Terminal F018. 17140_ Slug penetrates Wall. 17145_ Acquired Adv. Targeting Computer. 17157_ Acquired 98 matter. 17157_ Acquired 2 matter. 17158_ Acquired 41 matter. 17161_ Penetrated by Slug. 17161_ Slug penetrates T-07 Excavator. 17161_ Slug penetrates Wall. 17164_ Penetrated by Slug. 17164_ Slug penetrates K-01 Serf. 17164_ K-01 Serf destroyed. 17164_ Slug penetrates Wall. 17167_ Penetrated by Slug. 17167_ Slug penetrates Wall. Map ----- +----------------------------------------------------+ | ???? ????? #?????"????????????????????????? | | ????????? #??????????? ??#?????#???????#?? | | ??????? # ??????? ???#??#???#???????#??? | | ???????? #?? ???????????????#?????###### | | ???????? ###########???#???????#???# | | ??????? # #?????#?????????# | | ??????? ? # ##??????????#???# ! | | ??????? ??? # #?###########??# | | ????###+##### # #??# #??# | | ???# ## ####+### #### """" #??# | | ????# """ ## = + ""S"" #??# | | ????# """ ## ! # #### "" "" #### | | ??? # """ ## |* ??# ! # + | | ?? ?# ## # #?# #### | | ????# """ ## ## #??# | | ????# """ ###########h######### #### | | ?##?# """ ##???# h #####+##+############ | | ????#= ##???# # ?## """ ^ | | ????# """ #??#?# # #?# "T" | | ????# """ #?#??# % #? ?# | | ??### """ ##??## ##### "" | | ????#= #??#?# %+ "" | | #############???# = !########"### "" | | ##??????#?# = ## %% # ^ " | | #?###??#?## """ ## " % # ]! " | | """ ##?#?#????# "Y @ ## T % !# ]! | | """" #???#?????# """ ## %%# | | """" #???#??#??# ## # | | """" #??????#??############### # | | """ #?#??#?????#?#?????#??#####+####### #### | | " ##??#??#?#?#??#?##????# # #?#? | | % % ####??????##?#???#?##?# """ """ # ##?? | | #############??#?????#?#????# """ """ # #??? | | # ## """ #?#?###?#???#??## """ """ # #?#? | | #### "Y" #????????#?#??#?# + ##?? | | # ###############?# # #??? | | ## # ## #?# # ##?? | | # ##/######## """" """" ############### ##?? | | # + """" """" # ##?? | | # ########### """" """" # #??? | | # #?????#???# """" """" # #?#? | | # #?#?#??#??# """" """" + #??? | | # #?#??????## """" """" # #??? | | # #?#????#?## """" """" # ###############??? | | # #?#?#?????# # ####?#???#???????? | | ?# #???#??#?## # #????????????????? | | # #??#??#???# # #???#????????????? | | ?# #?#?????#?# # ##???#???????????? | | ?# ###???????############## ^ #????????????????? | | ##+#????#?#???????????????#^ #????#???????????? | +----------------------------------------------------+ Best States ------------- Heat Dissipation 100 Energy Generation 25 Energy Capacity 500 Matter Stores 300 Matter Capacity 300 Sight Range 16 Robot Scan Range 16 Terrain Scan Range 20 Terrain Scan Density 210 Jamming Range 14 Power Amplification 20 Armor Coverage 1050 Resistance: KI 40 Resistance: TH 30 Propulsion Shielding 66 Weapon Shielding 33 Weapon Cycling 20 Phase Shifting 5 Evasion (%) 60 Targeting Accuracy 8 Target Analysis 6 Core Analysis 6 Recoil Reduction 6 Particle Charging 25 Kinecelleration 30 Offensive Hacking 14 Item Schematics ----------------- Imp. Aluminum Leg | -8/Materials | Scanalyzed Aluminum Leg | -8/Materials | Scanalyzed Imp. Assault Rifle | -8/Materials | Scanalyzed Rocket Launcher | -8/Materials | Scanalyzed Sensor Array | -8/Materials | Scanalyzed Utility Shielding | -8/Materials | Scanalyzed Hvy. Ion Engine | -8/Materials | Scanalyzed Grenade Launcher | -8/Materials | Scanalyzed Beam Rifle | -8/Materials | Scanalyzed Shock Absorption System | -8/Storage | Hacked Adv. Variable Charge Gun | -5/Factory | Scanalyzed Centrium Medium Armor Plating | -5/Factory | Scanalyzed Imp. Titanium Leg | -5/Factory | Scanalyzed Q-thruster | -5/Factory | Hacked Flexi-carbon Leg | -4/Factory | Scanalyzed Adv. Focal Shield | -4/Factory | Scanalyzed Centrium Leg | -4/Factory | Hacked Robot Schematics ------------------ K-01 Serf | -5/Factory | Hacked Fabricated ------------ Enh. Flexi-carbon Leg | x1 | -6/Factory | Preloaded Alien Tech Used ----------------- Dimensional Node Initializer Achievements -------------- None Challenges ------------ None Game ------ Seed CompositeExplosiveFlakker Manual? 0 Play Time 02:14:49 Cumulative 151.5 hours Start 2025.01.05 @ 13:40:09 End 2025.01.07 @ 13:20:43 Sessions 5 Manual Loads 0 Difficulty Rogue Special Mode None Game No. 170 Rogue 170 Adventurer 0 Explorer 0 Win Type - Total 3 Types 2/0/1/0/0/0/0/0/0 Lore% 63 Gallery% 70 Achievement% 54 Wizard Run 0 Options --------- Layout 0 ASCII 0 Keyboard 1 Movement Numpad Keybinds 0 Fullscreen 2 Font 18/SmallcapsGlow Map View 76x50 Zoom Use 0% Tactical HUD 1 Map Filters NONE Filters NONE Steam 1 RUN: 4d98a339-5d91-4df8-9281-2dca85105fd4